[Event "*** SCC Grand Prix: Titled Tuesday Blitz"]
[Site "Chess.com"]
[Date "2020.08.11"]
[Round "3"]
[White "Guenplen"]
[Black "AnonymousIM2023"]
[Result "1-0"]
[WhiteElo "2889"]
[BlackElo "2660"]
[TimeControl "180+1"]
[EndTime "10:29:49 PDT"]
[Termination "Guenplen won by resignation"]

1. d4 {[%clk 0:03:00.9]} 1... Nf6 {[%clk 0:02:59.7]} 2. Bf4 {[%clk 0:03:00.9]}
2... g6 {[%clk 0:02:59.6]} 3. e3 {[%clk 0:03:00.9]} 3... Bg7 {[%clk 0:02:59.6]}
4. Nf3 {[%clk 0:02:59.2]} 4... d6 {[%clk 0:02:59.9]} 5. h3 {[%clk 0:02:58.9]}
5... O-O {[%clk 0:02:59.8]} 6. Be2 {[%clk 0:02:59]} 6... Nc6 {[%clk 0:03:00.2]}
7. O-O {[%clk 0:02:58.4]} 7... e5 {[%clk 0:03:00.4]} 8. Bh2 {[%clk 0:02:52.8]}
8... Qe8 {[%clk 0:02:47.7]} 9. c3 {[%clk 0:02:50.5]} 9... Ne4 {[%clk 0:02:47.4]}
10. a4 {[%clk 0:02:49]} 10... Kh8 {[%clk 0:02:45.5]} 11. Nbd2 {[%clk 0:02:45.8]}
11... f5 {[%clk 0:02:45.2]} 12. Nxe4 {[%clk 0:02:37.4]} 12... fxe4 {[%clk
0:02:46.1]} 13. Nd2 {[%clk 0:02:37.8]} 13... exd4 {[%clk 0:02:44.4]} 14. cxd4
{[%clk 0:02:37.1]} 14... Bf5 {[%clk 0:02:07.2]} 15. Rc1 {[%clk 0:02:36.1]} 15...
Qf7 {[%clk 0:02:05.1]} 16. Qb3 {[%clk 0:02:30.5]} 16... Qxb3 {[%clk 0:02:04]}
17. Nxb3 {[%clk 0:02:30.2]} 17... Rae8 {[%clk 0:02:00.5]} 18. d5 {[%clk
0:02:23.5]} 18... Nb4 {[%clk 0:01:58.3]} 19. Rxc7 {[%clk 0:02:23.6]} 19... Nxd5
{[%clk 0:01:54.9]} 20. Rxb7 {[%clk 0:02:22.9]} 20... Rb8 {[%clk 0:01:55]} 21.
Rxb8 {[%clk 0:01:59.1]} 21... Rxb8 {[%clk 0:01:55.9]} 22. Na5 {[%clk 0:01:59.4]}
22... Rxb2 {[%clk 0:01:52.6]} 23. Bb5 {[%clk 0:01:59.3]} 23... Nc3 {[%clk
0:01:32.3]} 24. Nc4 {[%clk 0:01:55.2]} 24... Ra2 {[%clk 0:01:21.7]} 25. Nxd6
{[%clk 0:01:55]} 25... Nxa4 {[%clk 0:01:19.9]} 26. Bc4 {[%clk 0:01:44.3]} 26...
Rd2 {[%clk 0:01:06.7]} 27. Nxf5 {[%clk 0:01:23.9]} 27... gxf5 {[%clk 0:01:06.7]}
28. Be6 {[%clk 0:01:24.8]} 28... Nc5 {[%clk 0:01:06.8]} 29. Bxf5 {[%clk
0:01:23.6]} 29... a5 {[%clk 0:01:07]} 30. Bg3 {[%clk 0:01:16.4]} 30... Bb2
{[%clk 0:01:00.4]} 31. Rb1 {[%clk 0:01:13.4]} 31... Kg8 {[%clk 0:00:57.9]} 32.
Bd6 {[%clk 0:00:58.2]} 32... Rxd6 {[%clk 0:00:43.3]} 33. Rxb2 {[%clk 0:00:57.6]}
33... a4 {[%clk 0:00:44.2]} 34. Rb5 {[%clk 0:00:48]} 34... Rd1+ {[%clk
0:00:32.7]} 35. Kh2 {[%clk 0:00:47.1]} 35... Rc1 {[%clk 0:00:33.6]} 36. Ra5
{[%clk 0:00:41.7]} 36... Kg7 {[%clk 0:00:33.2]} 37. g4 {[%clk 0:00:40.5]} 37...
Kf6 {[%clk 0:00:29.9]} 38. Bxh7 {[%clk 0:00:39.3]} 38... Ke5 {[%clk 0:00:19.3]}
39. h4 {[%clk 0:00:34.3]} 39... Kd5 {[%clk 0:00:10]} 40. g5 {[%clk 0:00:31]}
40... Kc6 {[%clk 0:00:06]} 41. g6 {[%clk 0:00:28.9]} 41... Ne6 {[%clk
0:00:03.8]} 42. Ra6+ {[%clk 0:00:27.5]} 42... Kd5 {[%clk 0:00:01.8]} 43. Rxe6
{[%clk 0:00:26]} 43... Kxe6 {[%clk 0:00:02.7]} 44. g7 {[%clk 0:00:26.3]} 44...
Rc8 {[%clk 0:00:03.2]} 45. g8=Q+ {[%clk 0:00:26.5]} 45... Rxg8 {[%clk
0:00:03.7]} 46. Bxg8+ {[%clk 0:00:27.1]} 46... Kf5 {[%clk 0:00:04.1]} 47. Kg3
{[%clk 0:00:25.2]} 1-0

[Event "*** SCC Grand Prix: Titled Tuesday Blitz"]
[Site "Chess.com"]
[Date "2020.08.11"]
[Round "3"]
[White "Eternauta2400"]
[Black "IMTominho"]
[Result "0-1"]
[WhiteElo "2509"]
[BlackElo "2764"]
[TimeControl "180+1"]
[EndTime "10:29:49 PDT"]
[Termination "IMTominho won by resignation"]

1. e4 {[%clk 0:03:00.9]} 1... c5 {[%clk 0:02:58.2]} 2. Nf3 {[%clk 0:03:00.5]}
2... e6 {[%clk 0:02:58.2]} 3. d4 {[%clk 0:02:58.2]} 3... cxd4 {[%clk 0:02:59.1]}
4. Nxd4 {[%clk 0:02:58.7]} 4... Nf6 {[%clk 0:02:59.2]} 5. Nc3 {[%clk 0:02:57.7]}
5... d6 {[%clk 0:02:58.9]} 6. Be3 {[%clk 0:02:53.5]} 6... Bd7 {[%clk 0:02:56.4]}
7. f3 {[%clk 0:02:51]} 7... Nc6 {[%clk 0:02:56.5]} 8. Qd2 {[%clk 0:02:50.5]}
8... Be7 {[%clk 0:02:52.4]} 9. g4 {[%clk 0:02:48]} 9... O-O {[%clk 0:02:48.4]}
10. g5 {[%clk 0:02:45.5]} 10... Nh5 {[%clk 0:02:46]} 11. h4 {[%clk 0:02:40.1]}
11... a6 {[%clk 0:02:35.5]} 12. Bh3 {[%clk 0:02:27.6]} 12... b5 {[%clk
0:02:31.1]} 13. Bg4 {[%clk 0:02:14.1]} 13... g6 {[%clk 0:02:16.5]} 14. O-O-O
{[%clk 0:02:06.1]} 14... Ne5 {[%clk 0:02:12.4]} 15. Bxh5 {[%clk 0:01:53.6]}
15... gxh5 {[%clk 0:02:11.2]} 16. f4 {[%clk 0:01:42.9]} 16... Ng4 {[%clk
0:01:49.6]} 17. f5 {[%clk 0:01:31.2]} 17... Re8 {[%clk 0:01:44]} 18. g6 {[%clk
0:01:20.8]} 18... hxg6 {[%clk 0:01:34.8]} 19. fxg6 {[%clk 0:01:14.9]} 19... fxg6
{[%clk 0:01:35.7]} 20. Bg5 {[%clk 0:01:11.6]} 20... Bxg5 {[%clk 0:01:22.9]} 21.
hxg5 {[%clk 0:01:12.5]} 21... b4 {[%clk 0:01:19]} 22. Nb1 {[%clk 0:01:04.8]}
22... e5 {[%clk 0:01:17.5]} 23. Nf3 {[%clk 0:00:59.5]} 23... Bc6 {[%clk
0:01:02.1]} 24. Qxb4 {[%clk 0:00:37.9]} 24... Re6 {[%clk 0:00:54.7]} 25. Qc4
{[%clk 0:00:24.7]} 25... Qd7 {[%clk 0:00:53.1]} 26. Nbd2 {[%clk 0:00:20.7]}
26... Ne3 {[%clk 0:00:45.4]} 27. Qb3 {[%clk 0:00:14.1]} 27... Nxd1 {[%clk
0:00:44.7]} 28. Rxd1 {[%clk 0:00:13.4]} 28... Re8 {[%clk 0:00:44.4]} 29. Nc4
{[%clk 0:00:13]} 29... Kh7 {[%clk 0:00:33.5]} 30. Nfxe5 {[%clk 0:00:12.4]} 30...
Rxe5 {[%clk 0:00:30.8]} 31. Nxe5 {[%clk 0:00:12]} 31... Rxe5 {[%clk 0:00:29.3]}
32. Rf1 {[%clk 0:00:10.4]} 32... Re7 {[%clk 0:00:24.3]} 33. Rf8 {[%clk
0:00:07.3]} 33... d5 {[%clk 0:00:20.1]} 34. Qb8 {[%clk 0:00:04.9]} 34... Re8
{[%clk 0:00:19.6]} 35. Qf4 {[%clk 0:00:01.3]} 35... Rxf8 {[%clk 0:00:17.9]} 36.
Qxf8 {[%clk 0:00:02.2]} 36... dxe4 {[%clk 0:00:18]} 37. Qf4 {[%clk 0:00:02.5]}
37... Qe7 {[%clk 0:00:16.8]} 38. Kd2 {[%clk 0:00:02.5]} 38... Bd7 {[%clk
0:00:14.2]} 39. Ke3 {[%clk 0:00:02.8]} 39... Bf5 {[%clk 0:00:14.6]} 40. c3
{[%clk 0:00:02.7]} 40... Kg7 {[%clk 0:00:15.1]} 41. Qxf5 {[%clk 0:00:03.1]}
41... gxf5 {[%clk 0:00:14.6]} 0-1

[Event "*** SCC Grand Prix: Titled Tuesday Blitz"]
[Site "Chess.com"]
[Date "2020.08.11"]
[Round "3"]
[White "floplover"]
[Black "CrushingKings"]
[Result "1-0"]
[WhiteElo "2309"]
[BlackElo "2506"]
[TimeControl "180+1"]
[EndTime "10:29:49 PDT"]
[Termination "floplover won by checkmate"]

1. d4 {[%clk 0:03:00.9]} 1... Nf6 {[%clk 0:02:58.8]} 2. c4 {[%clk 0:02:59.3]}
2... e6 {[%clk 0:02:59.2]} 3. Nc3 {[%clk 0:02:58.5]} 3... Bb4 {[%clk 0:02:59.7]}
4. Qc2 {[%clk 0:02:58.4]} 4... O-O {[%clk 0:02:59.1]} 5. e4 {[%clk 0:02:57.2]}
5... d5 {[%clk 0:02:59.3]} 6. e5 {[%clk 0:02:56.7]} 6... Ne4 {[%clk 0:02:59.6]}
7. Bd3 {[%clk 0:02:56.6]} 7... c5 {[%clk 0:02:59.8]} 8. Nf3 {[%clk 0:02:57.1]}
8... cxd4 {[%clk 0:03:00]} 9. Nxd4 {[%clk 0:02:58]} 9... Nd7 {[%clk 0:03:00.3]}
10. Bf4 {[%clk 0:02:57.9]} 10... Qh4 {[%clk 0:03:00.9]} 11. g3 {[%clk
0:02:57.2]} 11... Qh5 {[%clk 0:03:01.5]} 12. O-O {[%clk 0:02:53.3]} 12... Bxc3
{[%clk 0:02:56.9]} 13. bxc3 {[%clk 0:02:52.6]} 13... Ndc5 {[%clk 0:02:55.9]} 14.
Be2 {[%clk 0:02:13.8]} 14... Qg6 {[%clk 0:02:55.5]} 15. f3 {[%clk 0:02:02.8]}
15... Ng5 {[%clk 0:02:52.2]} 16. Qxg6 {[%clk 0:01:49]} 16... Nh3+ {[%clk
0:02:52.2]} 17. Kh1 {[%clk 0:01:47.4]} 17... hxg6 {[%clk 0:02:44.3]} 18. Be3
{[%clk 0:01:44.1]} 18... f6 {[%clk 0:02:44.6]} 19. Kg2 {[%clk 0:01:38.3]} 19...
Ng5 {[%clk 0:02:43.9]} 20. Bxg5 {[%clk 0:01:38]} 20... fxg5 {[%clk 0:02:44.8]}
21. Rab1 {[%clk 0:01:20.5]} 21... b6 {[%clk 0:02:44.4]} 22. cxd5 {[%clk
0:01:14.7]} 22... exd5 {[%clk 0:02:43.4]} 23. Rfd1 {[%clk 0:01:12.5]} 23... Bd7
{[%clk 0:02:33.7]} 24. Bb5 {[%clk 0:01:09.5]} 24... Rae8 {[%clk 0:02:26.9]} 25.
Bxd7 {[%clk 0:00:56.5]} 25... Nxd7 {[%clk 0:02:27.8]} 26. e6 {[%clk 0:00:46.9]}
26... Nc5 {[%clk 0:02:26.3]} 27. Re1 {[%clk 0:00:45.7]} 27... Rf6 {[%clk
0:02:21.6]} 28. Re5 {[%clk 0:00:45.2]} 28... Nxe6 {[%clk 0:02:15.1]} 29. Rbe1
{[%clk 0:00:40.3]} 29... Kf7 {[%clk 0:02:15.2]} 30. Rxd5 {[%clk 0:00:35.2]}
30... Nf4+ {[%clk 0:02:03.5]} 31. gxf4 {[%clk 0:00:29.2]} 31... Rxe1 {[%clk
0:02:04.1]} 32. fxg5 {[%clk 0:00:28.4]} 32... Rfe6 {[%clk 0:01:26.3]} 33. Nxe6
{[%clk 0:00:26.5]} 33... Kxe6 {[%clk 0:01:27.2]} 34. Rd2 {[%clk 0:00:21.3]}
34... Kf5 {[%clk 0:01:27.3]} 35. h4 {[%clk 0:00:20.3]} 35... Rc1 {[%clk
0:01:25.4]} 36. Rd7 {[%clk 0:00:16.5]} 36... Rc2+ {[%clk 0:01:24.1]} 37. Kg3
{[%clk 0:00:16.5]} 37... Rxa2 {[%clk 0:01:24.8]} 38. Rxg7 {[%clk 0:00:16.5]}
38... a5 {[%clk 0:01:25.4]} 39. Rf7+ {[%clk 0:00:16.9]} 39... Ke5 {[%clk
0:01:21.5]} 40. Rf6 {[%clk 0:00:17.8]} 40... Rb2 {[%clk 0:01:19.5]} 41. Rxg6
{[%clk 0:00:16.6]} 41... a4 {[%clk 0:01:20.1]} 42. Rg8 {[%clk 0:00:16.2]} 42...
a3 {[%clk 0:01:20.6]} 43. Ra8 {[%clk 0:00:14.9]} 43... a2 {[%clk 0:01:21.1]} 44.
Kg4 {[%clk 0:00:10.9]} 44... Kd5 {[%clk 0:01:08.9]} 45. g6 {[%clk 0:00:08.7]}
45... Kc4 {[%clk 0:01:08.3]} 46. h5 {[%clk 0:00:08.7]} 46... Kxc3 {[%clk
0:01:05.8]} 47. h6 {[%clk 0:00:07.5]} 47... Rg2+ {[%clk 0:01:01]} 48. Kf5 {[%clk
0:00:07]} 48... b5 {[%clk 0:01:00.4]} 49. g7 {[%clk 0:00:07.1]} 49... b4 {[%clk
0:01:00.4]} 50. Rxa2 {[%clk 0:00:06.7]} 50... Rxa2 {[%clk 0:00:53.7]} 51. g8=Q
{[%clk 0:00:05.7]} 51... b3 {[%clk 0:00:54.6]} 52. Qc8+ {[%clk 0:00:05.2]} 52...
Kb2 {[%clk 0:00:54.9]} 53. h7 {[%clk 0:00:06]} 53... Kb1 {[%clk 0:00:53.9]} 54.
h8=Q {[%clk 0:00:05.7]} 54... Rc2 {[%clk 0:00:54.8]} 55. Qh1+ {[%clk 0:00:05.6]}
55... Kb2 {[%clk 0:00:55]} 56. Qa6 {[%clk 0:00:05.6]} 56... Kc3 {[%clk
0:00:53.3]} 57. Qe1+ {[%clk 0:00:04.6]} 57... Kd4 {[%clk 0:00:52.8]} 58. Qd6+
{[%clk 0:00:03.7]} 58... Kc4 {[%clk 0:00:52.9]} 59. Qeb4# {[%clk 0:00:03.9]} 1-0

[Event "*** SCC Grand Prix: Titled Tuesday Blitz"]
[Site "Chess.com"]
[Date "2020.08.11"]
[Round "3"]
[White "Irishchessman16"]
[Black "chesslh19"]
[Result "1/2-1/2"]
[WhiteElo "2358"]
[BlackElo "2177"]
[TimeControl "180+1"]
[EndTime "10:29:49 PDT"]
[Termination "Game drawn by repetition"]

1. e4 {[%clk 0:03:00.9]} 1... c5 {[%clk 0:02:59.7]} 2. Nf3 {[%clk 0:03:00]} 2...
d6 {[%clk 0:03:00.3]} 3. d4 {[%clk 0:02:59.7]} 3... cxd4 {[%clk 0:03:01.2]} 4.
Nxd4 {[%clk 0:02:59.3]} 4... Nf6 {[%clk 0:03:01.8]} 5. Nc3 {[%clk 0:02:59.7]}
5... e6 {[%clk 0:03:02.5]} 6. Be2 {[%clk 0:02:44.6]} 6... a6 {[%clk 0:03:02]} 7.
Be3 {[%clk 0:02:39.3]} 7... Be7 {[%clk 0:03:02.2]} 8. g4 {[%clk 0:02:31.5]} 8...
h6 {[%clk 0:02:56.5]} 9. h4 {[%clk 0:02:29.3]} 9... Nc6 {[%clk 0:02:51.6]} 10.
Rg1 {[%clk 0:02:24.6]} 10... d5 {[%clk 0:02:39.4]} 11. g5 {[%clk 0:01:37.8]}
11... hxg5 {[%clk 0:02:36.3]} 12. hxg5 {[%clk 0:01:38]} 12... Nxe4 {[%clk
0:02:30.8]} 13. Nxe4 {[%clk 0:01:37.8]} 13... dxe4 {[%clk 0:02:29.2]} 14. Nxc6
{[%clk 0:01:37.4]} 14... bxc6 {[%clk 0:02:17]} 15. Qxd8+ {[%clk 0:01:32.9]}
15... Bxd8 {[%clk 0:02:16]} 16. O-O-O {[%clk 0:01:31.6]} 16... a5 {[%clk
0:01:58.8]} 17. Rg4 {[%clk 0:01:13.9]} 17... Ba6 {[%clk 0:01:41.5]} 18. Bxa6
{[%clk 0:01:12]} 18... Rxa6 {[%clk 0:01:42.4]} 19. Rxe4 {[%clk 0:01:12.2]} 19...
Bb6 {[%clk 0:01:30.5]} 20. Bxb6 {[%clk 0:00:42.1]} 20... Rxb6 {[%clk 0:01:31.4]}
21. g6 {[%clk 0:00:42.6]} 21... c5 {[%clk 0:00:57.4]} 22. gxf7+ {[%clk
0:00:38.6]} 22... Kxf7 {[%clk 0:00:58.3]} 23. Rd7+ {[%clk 0:00:38.1]} 23... Kf6
{[%clk 0:00:58.6]} 24. b3 {[%clk 0:00:28.8]} 24... Rh2 {[%clk 0:00:46.6]} 25.
Rf4+ {[%clk 0:00:25.4]} 25... Ke5 {[%clk 0:00:46.8]} 26. Rff7 {[%clk 0:00:20.2]}
26... g5 {[%clk 0:00:42.6]} 27. Rd3 {[%clk 0:00:18]} 27... Rb4 {[%clk
0:00:36.2]} 28. Rg3 {[%clk 0:00:17.6]} 28... Rf4 {[%clk 0:00:26]} 29. Rxg5+
{[%clk 0:00:17.3]} 29... Rf5 {[%clk 0:00:26.5]} 30. Rgxf5+ {[%clk 0:00:09.9]}
30... exf5 {[%clk 0:00:26.7]} 31. Rc7 {[%clk 0:00:09.5]} 31... Kd4 {[%clk
0:00:20]} 32. Rd7+ {[%clk 0:00:08.8]} 32... Kc3 {[%clk 0:00:19.9]} 33. Rd3+
{[%clk 0:00:08.3]} 33... Kb4 {[%clk 0:00:20.1]} 34. Rf3 {[%clk 0:00:07.4]} 34...
Rh5 {[%clk 0:00:18.5]} 35. Kb2 {[%clk 0:00:07]} 35... Kb5 {[%clk 0:00:17.4]} 36.
a4+ {[%clk 0:00:06.5]} 36... Kc6 {[%clk 0:00:16.8]} 37. Kc3 {[%clk 0:00:06.4]}
37... Rg5 {[%clk 0:00:16.6]} 38. Rf4 {[%clk 0:00:06.4]} 38... Rh5 {[%clk
0:00:15.8]} 39. Rf3 {[%clk 0:00:06]} 39... Rg5 {[%clk 0:00:15.8]} 40. Rh3 {[%clk
0:00:06]} 40... Rg2 {[%clk 0:00:09.4]} 41. Rf3 {[%clk 0:00:04.7]} 41... Rg5
{[%clk 0:00:09.3]} 1/2-1/2

[Event "*** SCC Grand Prix: Titled Tuesday Blitz"]
[Site "Chess.com"]
[Date "2020.08.11"]
[Round "3"]
[White "creativity"]
[Black "poppy73"]
[Result "1-0"]
[WhiteElo "1989"]
[BlackElo "2255"]
[TimeControl "180+1"]
[EndTime "10:29:49 PDT"]
[Termination "creativity won by resignation"]

1. d4 {[%clk 0:03:00.9]} 1... Nf6 {[%clk 0:02:59.7]} 2. c4 {[%clk 0:03:00.6]}
2... g6 {[%clk 0:03:00.2]} 3. Nc3 {[%clk 0:03:00.3]} 3... Bg7 {[%clk 0:03:00.8]}
4. e4 {[%clk 0:03:00.2]} 4... d6 {[%clk 0:03:01.5]} 5. Nf3 {[%clk 0:02:59.9]}
5... O-O {[%clk 0:03:01.5]} 6. Be2 {[%clk 0:03:00]} 6... e5 {[%clk 0:03:01.8]}
7. O-O {[%clk 0:02:59.6]} 7... Nc6 {[%clk 0:03:01.9]} 8. d5 {[%clk 0:02:59.6]}
8... Ne7 {[%clk 0:03:01.8]} 9. Ne1 {[%clk 0:02:59.6]} 9... Nd7 {[%clk
0:02:59.6]} 10. Be3 {[%clk 0:02:59.7]} 10... f5 {[%clk 0:02:58.6]} 11. f3 {[%clk
0:02:59.7]} 11... f4 {[%clk 0:02:59]} 12. Bf2 {[%clk 0:02:59.7]} 12... g5 {[%clk
0:02:59.5]} 13. g4 {[%clk 0:02:59.7]} 13... fxg3 {[%clk 0:02:52.7]} 14. hxg3
{[%clk 0:02:59.5]} 14... Ng6 {[%clk 0:02:44.4]} 15. Qd2 {[%clk 0:02:54.3]} 15...
h5 {[%clk 0:02:39.7]} 16. Be3 {[%clk 0:02:50.4]} 16... Bf6 {[%clk 0:02:17.8]}
17. Ng2 {[%clk 0:02:30.5]} 17... h4 {[%clk 0:02:04.5]} 18. gxh4 {[%clk
0:02:22.1]} 18... gxh4 {[%clk 0:02:03.7]} 19. Kh1 {[%clk 0:02:09.4]} 19... Kf7
{[%clk 0:01:55.1]} 20. Ne1 {[%clk 0:01:52.4]} 20... Rg8 {[%clk 0:01:15.3]} 21.
Nd3 {[%clk 0:01:51.5]} 21... b6 {[%clk 0:01:12.6]} 22. f4 {[%clk 0:01:20]} 22...
exf4 {[%clk 0:01:11]} 23. Bxf4 {[%clk 0:01:19.3]} 23... Ke8 {[%clk 0:00:54.6]}
24. Bh5 {[%clk 0:01:14.6]} 24... Ke7 {[%clk 0:00:47.5]} 25. Bg5 {[%clk
0:01:09.2]} 25... Nge5 {[%clk 0:00:38.2]} 26. Nxe5 {[%clk 0:00:46]} 26... dxe5
{[%clk 0:00:38]} 27. d6+ {[%clk 0:00:43.2]} 27... cxd6 {[%clk 0:00:30.6]} 28.
Nd5+ {[%clk 0:00:42.7]} 28... Ke6 {[%clk 0:00:29.3]} 29. Bxf6 {[%clk 0:00:32.5]}
29... Nxf6 {[%clk 0:00:19.3]} 30. Rxf6+ {[%clk 0:00:26.8]} 30... Kd7 {[%clk
0:00:13.2]} 31. Rf7+ {[%clk 0:00:25]} 31... Kc6 {[%clk 0:00:13.3]} 32. Rc7+
{[%clk 0:00:15.8]} 32... Qxc7 {[%clk 0:00:12.8]} 33. Nxc7 {[%clk 0:00:15]} 33...
Kxc7 {[%clk 0:00:13.7]} 34. Qh6 {[%clk 0:00:13.6]} 34... Bb7 {[%clk 0:00:12.6]}
35. Qh7+ {[%clk 0:00:13]} 35... Kc6 {[%clk 0:00:12.9]} 36. b4 {[%clk 0:00:12.5]}
36... b5 {[%clk 0:00:08.2]} 37. Bf7 {[%clk 0:00:11.3]} 37... Rh8 {[%clk
0:00:06.1]} 38. Bd5+ {[%clk 0:00:10.8]} 1-0

[Event "*** SCC Grand Prix: Titled Tuesday Blitz"]
[Site "Chess.com"]
[Date "2020.08.11"]
[Round "3"]
[White "allvim"]
[Black "TregubovP"]
[Result "0-1"]
[WhiteElo "2383"]
[BlackElo "2597"]
[TimeControl "180+1"]
[EndTime "10:29:51 PDT"]
[Termination "TregubovP won by resignation"]

1. e4 {[%clk 0:03:00.9]} 1... e6 {[%clk 0:02:58.5]} 2. d4 {[%clk 0:03:00]} 2...
d5 {[%clk 0:02:58.6]} 3. Nd2 {[%clk 0:03:00.5]} 3... c5 {[%clk 0:02:57.6]} 4.
exd5 {[%clk 0:02:59.9]} 4... exd5 {[%clk 0:02:57.8]} 5. Ngf3 {[%clk 0:03:00]}
5... Nc6 {[%clk 0:02:56]} 6. Bb5 {[%clk 0:02:59.2]} 6... Qe7+ {[%clk 0:02:56]}
7. Qe2 {[%clk 0:02:59.2]} 7... Qxe2+ {[%clk 0:02:55.2]} 8. Bxe2 {[%clk
0:03:00.1]} 8... Nb4 {[%clk 0:02:51.4]} 9. Bb5+ {[%clk 0:02:41.1]} 9... Bd7
{[%clk 0:02:48.6]} 10. Bxd7+ {[%clk 0:02:39.3]} 10... Kxd7 {[%clk 0:02:48.7]}
11. Kd1 {[%clk 0:02:39.8]} 11... f6 {[%clk 0:02:43.7]} 12. a3 {[%clk 0:02:39.4]}
12... Nc6 {[%clk 0:02:43.2]} 13. c3 {[%clk 0:02:36.8]} 13... cxd4 {[%clk
0:02:39]} 14. Nxd4 {[%clk 0:02:35.4]} 14... Nxd4 {[%clk 0:02:39.1]} 15. cxd4
{[%clk 0:02:36.3]} 15... Ne7 {[%clk 0:02:35.5]} 16. Nf3 {[%clk 0:02:32.8]} 16...
Nc6 {[%clk 0:02:27.8]} 17. Bf4 {[%clk 0:02:29]} 17... g5 {[%clk 0:02:27]} 18.
Be3 {[%clk 0:02:28]} 18... h5 {[%clk 0:02:21.5]} 19. Kd2 {[%clk 0:02:23.1]}
19... Bd6 {[%clk 0:02:08.7]} 20. Rac1 {[%clk 0:02:13.4]} 20... Rae8 {[%clk
0:02:08.2]} 21. Kd3 {[%clk 0:02:10.2]} 21... Na5 {[%clk 0:01:54.5]} 22. Nd2
{[%clk 0:01:58.2]} 22... h4 {[%clk 0:01:48.7]} 23. h3 {[%clk 0:01:56.7]} 23...
b5 {[%clk 0:01:45.6]} 24. Rc2 {[%clk 0:01:40.5]} 24... Nc4 {[%clk 0:01:42.8]}
25. Nxc4 {[%clk 0:01:26.8]} 25... dxc4+ {[%clk 0:01:41.7]} 26. Kc3 {[%clk
0:01:20.9]} 26... Rc8 {[%clk 0:01:33]} 27. d5 {[%clk 0:01:11.3]} 27... a5 {[%clk
0:01:30.5]} 28. Kd4 {[%clk 0:01:01.5]} 28... Rhe8 {[%clk 0:01:24.6]} 29. Kc3
{[%clk 0:00:56.8]} 29... Be5+ {[%clk 0:01:08.7]} 30. Kd2 {[%clk 0:00:56.7]}
30... Bxb2 {[%clk 0:01:08.7]} 31. Rb1 {[%clk 0:00:50.3]} 31... b4 {[%clk
0:01:02.8]} 32. axb4 {[%clk 0:00:20.5]} 32... axb4 {[%clk 0:01:02.5]} 33. Kd1
{[%clk 0:00:21]} 33... c3 {[%clk 0:01:01.1]} 34. Rcxb2 {[%clk 0:00:20.6]} 34...
cxb2 {[%clk 0:01:00.8]} 35. Rxb2 {[%clk 0:00:21.3]} 35... Re4 {[%clk 0:00:53]}
36. Kd2 {[%clk 0:00:20.1]} 36... Kd6 {[%clk 0:00:51.4]} 37. Kd3 {[%clk
0:00:17.2]} 37... Kxd5 {[%clk 0:00:49.9]} 38. Ra2 {[%clk 0:00:16.1]} 38... Rc3+
{[%clk 0:00:49]} 39. Kd2 {[%clk 0:00:16.3]} 39... Rec4 {[%clk 0:00:46]} 40. Ra5+
{[%clk 0:00:16.3]} 40... Ke6 {[%clk 0:00:44.2]} 41. Rb5 {[%clk 0:00:16]} 41...
b3 {[%clk 0:00:38.2]} 42. Rb6+ {[%clk 0:00:12.8]} 42... Rc6 {[%clk 0:00:37]} 43.
Rb8 {[%clk 0:00:11.1]} 43... Rc2+ {[%clk 0:00:36.8]} 44. Kd3 {[%clk 0:00:10.4]}
44... Rd6+ {[%clk 0:00:36.7]} 45. Ke4 {[%clk 0:00:08.8]} 45... f5+ {[%clk
0:00:36.6]} 46. Kf3 {[%clk 0:00:08.8]} 46... Rd3 {[%clk 0:00:33.5]} 47. Rb6+
{[%clk 0:00:04]} 47... Kf7 {[%clk 0:00:30.1]} 48. g3 {[%clk 0:00:03.8]} 48...
hxg3 {[%clk 0:00:26.4]} 49. fxg3 {[%clk 0:00:03.1]} 49... Rcc3 {[%clk
0:00:24.5]} 0-1

[Event "*** SCC Grand Prix: Titled Tuesday Blitz"]
[Site "Chess.com"]
[Date "2020.08.11"]
[Round "3"]
[White "bazar-wokzal"]
[Black "Politov_Pavel"]
[Result "1-0"]
[WhiteElo "2467"]
[BlackElo "2070"]
[TimeControl "180+1"]
[EndTime "10:29:51 PDT"]
[Termination "bazar-wokzal won by resignation"]

1. e4 {[%clk 0:03:00.9]} 1... c5 {[%clk 0:02:58.2]} 2. c3 {[%clk 0:03:00.8]}
2... e6 {[%clk 0:02:59.1]} 3. d4 {[%clk 0:03:00.7]} 3... d5 {[%clk 0:02:59.1]}
4. e5 {[%clk 0:03:00.7]} 4... Qb6 {[%clk 0:02:59.1]} 5. Nf3 {[%clk 0:03:00.9]}
5... Bd7 {[%clk 0:02:58.4]} 6. a3 {[%clk 0:03:00.9]} 6... a5 {[%clk 0:02:56.7]}
7. c4 {[%clk 0:02:49.2]} 7... dxc4 {[%clk 0:02:44.4]} 8. d5 {[%clk 0:02:49.2]}
8... exd5 {[%clk 0:02:43.3]} 9. Qxd5 {[%clk 0:02:48.4]} 9... Be6 {[%clk
0:02:40.9]} 10. Qe4 {[%clk 0:02:48.2]} 10... Qc6 {[%clk 0:02:27.1]} 11. Nc3
{[%clk 0:02:39]} 11... Qxe4+ {[%clk 0:02:22.2]} 12. Nxe4 {[%clk 0:02:38.8]}
12... Nc6 {[%clk 0:02:22.4]} 13. Be3 {[%clk 0:02:31.7]} 13... b6 {[%clk
0:02:03.5]} 14. Rc1 {[%clk 0:02:22.3]} 14... Be7 {[%clk 0:01:48.9]} 15. Bxc4
{[%clk 0:02:20.5]} 15... Bxc4 {[%clk 0:01:49.8]} 16. Rxc4 {[%clk 0:02:20.2]}
16... Nh6 {[%clk 0:01:43.4]} 17. Bxh6 {[%clk 0:02:16.5]} 17... gxh6 {[%clk
0:01:42.2]} 18. O-O {[%clk 0:02:15]} 18... Kd7 {[%clk 0:01:32]} 19. Ng3 {[%clk
0:01:47.1]} 19... Rhd8 {[%clk 0:01:23.7]} 20. Re1 {[%clk 0:01:38.2]} 20... b5
{[%clk 0:01:20.4]} 21. Rce4 {[%clk 0:01:34.1]} 21... c4 {[%clk 0:01:17.3]} 22.
Nf5 {[%clk 0:01:29.6]} 22... Bf8 {[%clk 0:01:16.1]} 23. Rh4 {[%clk 0:01:24.7]}
23... Kc7 {[%clk 0:01:03.1]} 24. Nxh6 {[%clk 0:01:22.6]} 24... Bxh6 {[%clk
0:00:49.6]} 25. Rxh6 {[%clk 0:01:22.4]} 25... b4 {[%clk 0:00:48.5]} 26. Rxh7
{[%clk 0:01:13.1]} 26... Rd7 {[%clk 0:00:46.8]} 27. h4 {[%clk 0:01:08]} 27... a4
{[%clk 0:00:30.5]} 28. axb4 {[%clk 0:01:06.3]} 28... Nxb4 {[%clk 0:00:28.7]} 29.
Re4 {[%clk 0:01:01.1]} 29... Kb6 {[%clk 0:00:12.4]} 30. Rxc4 {[%clk 0:00:56.8]}
30... Kb5 {[%clk 0:00:12.4]} 31. Rf4 {[%clk 0:00:47.3]} 31... Rd1+ {[%clk
0:00:12.8]} 32. Kh2 {[%clk 0:00:47.1]} 32... Rb1 {[%clk 0:00:13.7]} 33. Rhxf7
{[%clk 0:00:37.3]} 33... Rxb2 {[%clk 0:00:13.1]} 34. Rb7+ {[%clk 0:00:36.7]}
34... Kc5 {[%clk 0:00:12.7]} 35. Ne1 {[%clk 0:00:28.5]} 35... Rb3 {[%clk
0:00:06.8]} 36. Rbxb4 {[%clk 0:00:25.7]} 36... Rxb4 {[%clk 0:00:07]} 37. Nd3+
{[%clk 0:00:25.7]} 37... Kd5 {[%clk 0:00:07.4]} 38. Rxb4 {[%clk 0:00:23.2]}
38... a3 {[%clk 0:00:07.7]} 39. Rb1 {[%clk 0:00:23.3]} 39... a2 {[%clk
0:00:07.8]} 40. Ra1 {[%clk 0:00:23.7]} 40... Kc4 {[%clk 0:00:08.1]} 41. Nc1
{[%clk 0:00:23.9]} 41... Kc3 {[%clk 0:00:08.5]} 42. Rxa2 {[%clk 0:00:24.1]}
42... Rh8 {[%clk 0:00:09.1]} 43. Ne2+ {[%clk 0:00:24.1]} 43... Kd3 {[%clk
0:00:09]} 44. Nf4+ {[%clk 0:00:22]} 44... Ke4 {[%clk 0:00:09.9]} 45. g3 {[%clk
0:00:22.4]} 45... Kf3 {[%clk 0:00:09.9]} 46. e6 {[%clk 0:00:21.8]} 46... Kg4
{[%clk 0:00:10.8]} 47. e7 {[%clk 0:00:21.8]} 47... Re8 {[%clk 0:00:11.7]} 48.
Re2 {[%clk 0:00:21.8]} 1-0